Cogmind - Beta 15 @@@ ROGUE MODE // 2025.09.20 @ 02:39:35 Player: Runagate Result: Self-destructed Performance ------------- Evolutions (1) 500 Regions Visited (2) 400 Robots Destroyed (28) 140 Value Destroyed (549) 549 Prototype IDs (1) 20 Alien Tech Used (0) 0 Bonus (0) 0 TOTAL SCORE: 1609 Bonus ------- None Cogmind --------- Core Integrity 356/400 Matter 297/300 Energy 140/140 System Corruption 0% Temperature Warm (192) Movement Treading (160) Location -9/Materials Parts ------- > --- POWER (1) -------- Light Deuterium Engine > --- PROPULSION (3) --- Light Treads Light Treads > --- UTILITY (2) ------ Large Storage Unit > --- WEAPON (3) ------- Small Laser Ion Cannon Light Assault Rifle > --- INVENTORY (15) --- Light Deuterium Engine Light Deuterium Engine Large Matter Pod (150) EM Pulse Gun Light Assault Rifle Advanced EMP Blaster Advanced EMP Blaster Peak State ------------ > --- POWER ------------ Ion Engine > --- PROPULSION ------- Light Treads Light Treads > --- UTILITY ---------- Large Storage Unit Seismic Detector > --- WEAPON ----------- Ion Cannon Light Assault Rifle Advanced EMP Blaster > --- INVENTORY -------- Ion Engine Light Ion Engine Light Ion Engine Large Matter Pod EM Pulse Gun Small Laser Advanced EMP Blaster [Rating: 14] Favorites ----------- Power Ion Engine Engine Ion Engine Propulsion Light Treads Treads Light Treads Utility Seismic Detector Device Seismic Detector Storage Large Storage Unit Weapon Light Assault Rifle Energy Gun Small Laser Energy Cannon Ion Cannon Ballistic Gun Light Assault Rifle Launcher Advanced EMP Blaster Build | -11 -10 -9 ------- Run | Yrd Mat Mat Slots Evolved 2 | . . 2 Power . | . . . Propulsion 1 | . . 1 Utility . | . . . Weapon 1 | . . 1 Parts Attached 17 | 7 6 4 Power 4 | 1 2 1 Engine 4 | 1 2 1 Core . | . . . Reactor . | . . . Propulsion 2 | 2 . . Treads 2 | 2 . . Leg . | . . . Wheel . | . . . Hover . | . . . Flight . | . . . Utility 5 | 2 3 . Device 2 | 1 1 . Storage 3 | 1 2 . Processor . | . . . Hackware . | . . . Protection . | . . . Artifact . | . . . Weapon 6 | 2 1 3 Energy Gun 2 | 1 1 . Energy Cannon 1 | . . 1 Ballistic Gun 2 | 1 . 1 Ballistic Cannon . | . . . Launcher 1 | . . 1 Special Weapon . | . . . Impact Weapon . | . . . Slashing Weapon . | . . . Piercing Weapon . | . . . Special Melee Weapon . | . . . Unidentified Prototypes 1 | . . 1 Parts Lost 1 | . . 1 Power . | . . . Propulsion . | . . . Utility 1 | . . 1 Weapon . | . . . Highest Loss Streak 1 | . . 1 To Critical Strikes . | . . . Average Backups 3 | 1 3 6 Power 1 | . 2 2 Propulsion . | . . . Utility . | . . 1 Weapon 1 | . 1 3 Tool/Special . | . . . Unused Backups 5 | . . 5 Power 3 | . . 3 Propulsion . | . . . Utility 1 | . . 1 Weapon 1 | . . 1 Tool/Special . | . . . Average Slot Usage (%) 95 | . 99 83 Engine 13 | . 14 11 Treads 26 | . 27 22 Device 12 | . 14 7 Storage 13 | . 14 11 Energy Gun 13 | . 14 9 Energy Cannon 2 | . . 10 Ballistic Gun 13 | . 14 11 Peak Build Rating 14 | 7 7 14 Average Rating 7 | 6 6 12 On Entrance 4 | . 7 7 Naked Turns . | . . . Heaviest Build 39 | 11 29 39 Greatest Support 40 | 40 40 40 Greatest Overweight (x) . | . . . Average Overweight (x) . | . . . Largest Inventory Capacity 15 | 8 15 15 Average Capacity 11 | 7 11 15 Most Carried 10 | 2 6 10 Average Carried 3 | 1 3 6 Final Capacity 15 | 8 15 15 Final Carried 7 | 2 5 7 Class Distribution -------------------- 82% | Mutant 17% | Gunner Dominant Class ---------------- Mutant | -10/Materials Gunner | -9/Materials Resources | -11 -10 -9 ----------- Run | Yrd Mat Mat Matter Collected 616 | 293 238 85 Remotely . | . . . Salvage Created 830 | 163 405 262 Parts 56 | 11 29 16 Haulers Intercepted 1 | . 1 . Recyclers Shooed . | . . . Parts Field Recycled . | . . . Retrieved Matter . | . . . Parts Self-Destructed . | . . . Prevented . | . . . Kills | -11 -10 -9 ------- Run | Yrd Mat Mat Combat Hostiles Destroyed 18 | . 9 9 Melee 1 | . . 1 Guns 11 | . 7 4 Cannons 2 | . . 2 AOE 4 | . 2 2 Classes Destroyed 7 | 2 5 . Tunneler 6 | 4 1 1 Hauler 1 | . 1 . Recycler 1 | 1 . . Operator 1 | . 1 . Watcher 1 | . 1 . Swarmer 7 | . 3 4 Grunt 11 | . 6 5 Best Kill Streak 6 | 3 5 6 Combat Bots Only 6 | . 5 6 Max Kills in Single Turn 3 | 1 2 3 Gunslinging . | . . . Exploded 2 | . 2 2 Melee 1 | . . 1 Uniques/NPCs Destroyed . | . . . Combat | -11 -10 -9 -------- Run | Yrd Mat Mat Hostile Shots Fired 83 | . 49 34 Missed 18 | . 13 5 Hits 65 | . 36 29 Projectile 65 | . 36 29 Critical Strikes 1 | . 1 . Damage Taken 710 | . 434 276 Core 132 | . 88 44 Absorbed by Shields . | . . . Regen/Repaired (Parts) 178 | . 178 . Core Remaining (%) 82 | 100 64 . Volleys Fired 77 | 23 40 14 Largest 3 | 2 2 3 Hottest 120 | 60 60 120 Shots Fired 165 | 45 80 40 Gun 152 | 45 80 27 Cannon 12 | . . 12 Launcher 1 | . . 1 Special . | . . . Kinetic 77 | 23 40 14 Thermal 73 | 22 26 25 Explosive . | . . . Electromagnetic 15 | . 14 1 Robot Hit Streak 8 | 8 6 5 Robot Miss Streak 4 | 2 4 3 Penetration Max . | . . . Secondary Targets 1 | . 1 . Max Gunslinging Chain 1 | . 1 . Shots Hit Robots 100 | 31 49 20 Core Hits 48 | 8 25 15 Critical Kills . | . . . Critical Parts Destroyed . | . . . Critical Strikes . | . . . Melee Attacks . | . . . Impact . | . . . Slashing . | . . . Piercing . | . . . Sneak Attacks . | . . . Combat Hostiles . | . . . Follow-up Attacks . | . . . Damage Inflicted 1399 | 279 708 412 Guns 954 | 279 540 135 Cannons 159 | . . 159 Explosions 260 | . 162 98 Melee . | . . . Ramming 26 | . 6 20 Kinetic 344 | 114 194 36 Thermal 786 | 165 363 258 Explosive . | . . . Electromagnetic 243 | . 145 98 Impact . | . . . Slashing . | . . . Piercing . | . . . Highest Corruption . | . . . Average Corruption . | . . . Corruption Purged . | . . . Corruption Blocked . | . . . Overload Shots . | . . . Overflow Damage 25 | . . 25 Projectiles . | . . . Explosions 25 | . . 25 Melee . | . . . Knockbacks . | . . . Impact . | . . . Kinetic . | . . . Secondary . | . . . Self-Inflicted Damage 51 | . 51 . Shots 2 | . 2 . Rammed 9 | . 3 6 Targets Rammed 10 | . 3 7 Kicked . | . . . Crushed 1 | . . 1 Highest Temperature 246 | 80 114 246 Average Temperature 54 | 31 39 104 Received Heat Transfer 249 | . 177 72 Siege Activations . | . . . Martial Activations . | . . . Shielding Activations . | . . . Robots Disrupted . | . . . Combat Hostiles . | . . . Robots Corrupted . | . . . Combat Hostiles . | . . . Parts Fried . | . . . Impact Corruptions . | . . . Robots Melted . | . . . Combat Hostiles . | . . . Parts Melted 7 | 1 3 3 Heat Transferred 1459 | 375 600 484 Parts Sabotaged . | . . . Parts Stolen . | . . . Parts Stripped . | . . . Power Chain Reactions 3 | . 2 1 Alert | -11 -10 -9 ------- Run | Yrd Mat Mat Maximum Alert Level . | . . . Low Security (%) 100 | 100 100 100 Level 1 . | . . . Level 2 . | . . . Level 3 . | . . . Level 4 . | . . . Level 5 . | . . . High Security . | . . . Max Security . | . . . Peak Influence 166 | 10 166 165 Initial 38 | . . 38 Average 47 | 1 45 100 Influence Increases 533 | 25 270 238 Destroy 0b10 Robot/C 360 | . 180 180 Destroy 0b10 Robot/NC 50 | 25 20 5 Destroy Leader 74 | . 44 30 Successful Hack 7 | . 7 . Disable Machine 15 | . . 15 Destroy Structure 12 | . 4 8 Lose Combat Pursuer 15 | . 15 . Influence Decreases 377 | 25 178 174 Entered New Map 54 | . . 54 Time Decay 313 | 25 178 110 Lost Part 10 | . . 10 Squads Dispatched 4 | . 2 2 Investigation 1 | . 1 . Extermination . | . . . Reinforcement 3 | . 1 2 Assault . | . . . Garrison . | . . . Intercept . | . . . Searches Triggered . | . . . Construction Impeded 1 | . . 1 Haulers Reinforced . | . . . Active Scanning Responses . | . . . Cargo Convoy Interrupts . | . . . Stealth | -11 -10 -9 --------- Run | Yrd Mat Mat Distress Signals . | . . . Communications Jammed . | . . . Distress Signals . | . . . Times Spotted 26 | . 16 10 Peak Tracking Total 5 | . 5 3 Tactical Retreats 1 | . 1 . Traps | -11 -10 -9 ------- Run | Yrd Mat Mat Traps Triggered 1 | . 1 . Indirectly . | . . . Trap Hack Attempts . | . . . Triggered . | . . . Disarmed . | . . . Reprogrammed . | . . . Reused . | . . . Traps Extracted . | . . . Installed . | . . . Triggered . | . . . Machines | -11 -10 -9 ---------- Run | Yrd Mat Mat Machines Disabled 1 | . . 1 Max in Single Turn 1 | . . 1 Machines Repaired . | . . . Machines Dismantled . | . . . Machines Sabotaged . | . . . Overloaded Fab Kills . | . . . Hacking | -11 -10 -9 --------- Run | Yrd Mat Mat Machines Accessed 3 | . 3 . Terminals 2 | . 2 . Fabricators . | . . . Repair Stations 1 | . 1 . Recycling Units . | . . . Scanalyzers . | . . . Garrison Access . | . . . Total Hacks 9 | . 9 . Successful 5 | . 5 . Failed 4 | . 4 . Catastrophic . | . . . Database Lockouts . | . . . Manual . | . . . Terminals 5 | . 5 . Fabricators . | . . . Repair Stations 4 | . 4 . Recycling Units . | . . . Scanalyzers . | . . . Garrison Access . | . . . Terminal Hacks 1 | . 1 . Locate Traps 1 | . 1 . Fabricator Hacks . | . . . Repair Station Hacks 4 | . 4 . Scan Component 2 | . 2 . Repair 2 | . 2 . Recycling Unit Hacks . | . . . Scanalyzer . | . . . Garrison Access Hacks . | . . . Unauthorized Hacks . | . . . Terminals . | . . . Fabricators . | . . . Repair Stations . | . . . Recycling Units . | . . . Scanalyzers . | . . . Garrison Access . | . . . Data Cores Recovered 1 | . 1 . Used . | . . . Hacking Detections 2 | . 2 . Full Trace Events . | . . . Feedback Events . | . . . Feedback Blocked . | . . . Robot Schematics Acquired . | . . . Robots Built . | . . . Authchips . | . . . Time . | . . . Total Robot Build Rating . | . . . Part Schematics Acquired . | . . . Parts Built . | . . . Authchips . | . . . Time . | . . . Total Part Build Rating . | . . . Parts Repaired 2 | . 2 . Time 52 | . 52 . Parts Recycled . | . . . Recycled Matter . | . . . Retrieved Matter . | . . . Retrieved Components . | . . . Parts Scanalyzed . | . . . Part Schematics Acquired . | . . . Parts Damaged . | . . . Bothacking | -11 -10 -9 ------------ Run | Yrd Mat Mat Used RIF Installer . | . . . Robots Hacked . | . . . Non-combat . | . . . Combat . | . . . Robot Hacks Applied . | . . . Relay Couplers Released . | . . . Fabnet Peak Effective % . | . . . Robots Rewired . | . . . Allies Hacked . | . . . Hacks Repelled . | . . . Allies | -11 -10 -9 -------- Run | Yrd Mat Mat Total Allies . | . . . Largest Group . | . . . Highest-Rated Group . | . . . Highest-Rated Ally . | . . . Total Orders . | . . . Ally Attacks . | . . . Total Damage . | . . . Kills . | . . . Allies Corrupted . | . . . Allies Melted . | . . . Intel | -11 -10 -9 ------- Run | Yrd Mat Mat Active Infowar (turns) 1071 | 90 818 163 Seismic 1071 | 90 818 163 Robot Analysis Total . | . . . Derelict Logs Recovered . | . . . Drone Launches . | . . . Drone Recoveries . | . . . Exploration | -11 -10 -9 ------------- Run | Yrd Mat Mat Turns Passed 1261 | 216 818 227 Spaces Moved 560 | 86 384 90 Core 4 | 4 . . Treads 556 | 82 384 90 Legs . | . . . Wheels . | . . . Hover . | . . . Flight . | . . . Fastest Speed 50 | 50 160 160 Average Speed 159 | 154 160 160 Slowest Speed 160 | 160 160 160 Overloaded Moves . | . . . Propulsion Burnouts . | . . . Robots Hopped . | . . . Potential Cave-ins . | . . . Cave-ins Triggered . | . . . Exploration Rate (%) 28 | 7 66 11 Regions Visited 2 Branch Regions . Pre-discovered Areas . | . . . Known Exits Taken . | . . . Unknown Exits Taken 2 | 1 1 . Scrap Searched . | . . . Spaces Dug . | . . . Terrain Destroyed 11 | . 4 7 Melee . | . . . Projectile 3 | . . 3 AOE 8 | . 4 4 Terrain Rammed . | . . . Walls Destroyed . | . . . Machines Disabled . | . . . Actions | -11 -10 -9 --------- Run | Yrd Mat Mat Total 775 | 125 511 139 Wait 94 | 8 72 14 Move 558 | 85 383 90 Hop . | . . . Pick Up 7 | 2 1 4 Fast Attach 10 | 7 2 1 Attach . | . . . Detach . | . . . Swap 12 | . 7 5 Drop 7 | . 3 4 Fire 77 | 23 40 14 Melee . | . . . Ram . | . . . Kick . | . . . Crush 10 | . 3 7 Escape Stasis . | . . . Rewire . | . . . Trap . | . . . Miscellaneous . | . . . Route ------- -11/Scrapyard -10/Materials (discovered 3 exits: [*Mat x2] / [*Min]) -9/Materials (discovered 2 exits: [*Mat] / [*Sto]) History --------- Turn | Location | Event 6 | -11/Scrapyard | Discovered new exit (range 16) 217 | -11/Scrapyard | Entered Materials 313 | -10/Materials | Build established: Mutant 319 | -10/Materials | Discovered new exit (range 15) 681 | -10/Materials | Discovered new exit (range 7) 937 | -10/Materials | Repaired Lgt. Treads 965 | -10/Materials | Repaired Lgt. Treads 1014 | -10/Materials | Discovered new exit (range 9) 1035 | -10/Materials | Entered another Materials area 1035 | -9/Materials | Evolved 2 slots: Propulsion x1, Weapon x1 1110 | -9/Materials | Discovered new exit (range 13) 1249 | -9/Materials | Discovered new exit (range 15) 1262 | -9/Materials | Self-destructed Last Messages --------------- 01232_ U-05 Engineer works on Electrolysis Chamber. 01235_ K-01 Serf cleans the Recycling Unit. 01244_ U-05 Engineer completes Electrolysis Chamber. 01245_ K-01 Serf collects debris. 01247_ U-05 Engineer works on Electrolysis Chamber. 01248_ T-07 Excavator is excavating. 01249_ EXIT=FOUND 01251_ Electrolysis Chamber comes online. 01252_ T-07 Excavator is excavating. 01257_ U-05 Engineer lays Concrete. 01258_ R-06 Scavenger inserts Wheel into recycling unit. 01259_ G-34 Mercenary destroyed. 01261_ T-07 Excavator is excavating. 01261_ R-06 Scavenger inserts Corrupted Wheel into recycling unit. 01261_ K-01 Serf collects debris. Map ----- +----------------------------------------------------+ | ??????????????????????????????????????????? | | ??????????????????????????????????????????? | | ??????????????????????????????????????????? | | ??????????????????????????????????????????? | | ??????????????????????????????????????????? | | ??????????????????????????????????????????? | | ??????????????????????????????????????????? | | ??????????????????????????????????????????? | | ??????????????????????????????????????????? | | ??????????????????????????????????????????? | | ??????????????????????????????????????????? | | ??????????????????????????????????????????? | | ???????????????????????? ?????????????????? | | ??????????????????????? ????????????????? | | ???????t??????????????? #???????????????? | | ???????# #####??####### #???????????????? | | ?????? ? # ??????????????? | | ??????< + ??????????????? | | ??????? u r"" #??????????####?? | | ????????#u < """ Y" #?????????? | | ????????# """ "" #?????????? | | ????????# """ #?????????? | | ????????+ #?????????? # | | ????????# ########### # | | ????????# g k # | | ??? ; =%= @ # | | ??????????### ###### # | | ???????????????# # * # | | ???????????????# + %= # | | ???????????????# ####+#####%####### ## | | ???????????????# ## %###+####### #? | | ???????????????# ## # %%= # #? | | ???????????????####### ==]# + #? | | ?????????????????????#[ =]]# # #? | | ?????????????????????# =]=# # #? | | ?????????????????????################# ## | | ????????????????????????????????????# # | | ????????????????????????????????????# | | ????????????????????????????????????# < | | ????????????????????????????????????# | | ????????????????????????????????????# # | | ????????????????????????????????????####### | | ??????????????????????????????????????????? | | ??????????????????????????????????????????? | | ??????????????????????????????????????????? | | ??????????????????????????????????????????? | | ??????????????????????????????????????????? | | ??????????????????????????????????????????? | | ??????????????????????????????????????????? | | ??????????????????????????????????????????? | +----------------------------------------------------+ Best States ------------- Heat Dissipation 28 Energy Generation 14 Energy Capacity 250 Matter Stores 300 Matter Capacity 300 Sight Range 16 Terrain Scan Density 10 Evasion (%) 40 Recoil Reduction 2 Item Schematics ----------------- None Robot Schematics ------------------ None Fabricated ------------ Nothing Repaired ---------- Lgt. Treads | 25% | -10/Materials Lgt. Treads | 47% | -10/Materials Alien Tech Used ----------------- None Achievements -------------- None Challenges ------------ None Game ------ Seed ElectronProcessingHumpback Manual? 0 Play Time 00:10:47 Cumulative 77.8 hours Start 2025.09.20 @ 02:27:25 End 2025.09.20 @ 02:39:35 Sessions 1 Manual Loads 0 Difficulty Rogue Special Mode None Game No. 163 Rogue 161 Adventurer 0 Explorer 2 Win Type - Total 0 Types 0/0/0/0/0/0/0/0/0/0 Lore% 28 Gallery% 45 Achievement% 41 Wizard Run 0 Options --------- Layout 2 ASCII 0 Keyboard 1 Movement Arrows Keybinds 0 Fullscreen 1 Font 28/SmallcapsGlow Map View 50x49 Zoom Use 0% Tactical HUD 1 Map Filters NONE Filters NONE Steam 1 RUN: b94f831e-697a-4cd4-b898-e04795777596